[Event "Titled Tuesday Blitz August 1 Late 2023"]
[White "Miguelitro69"]
[Black "Bazilius, Augustinas"]
[BlackFideId "12832251"]
[WhiteElo "2299"]
[BlackElo "2430"]
[Result "0-1"]
[Round "8"]
[TimeControl "180+1"]
[Date "2023.08.01"]
[WhiteClock "0:00:25"]
[BlackClock "0:00:14"]
[Board "114"]

1. e4 {[%clk 0:02:59]}  c5 {[%clk 0:02:59]} 2. Nf3 {[%clk 0:03:00]}  a6 {[%clk 0:02:57]} 3. g3 {[%clk 0:02:59]}  b5 {[%clk 0:02:56]} 4. Bg2 {[%clk 0:02:59]}  Bb7 {[%clk 0:02:57]} 5. Qe2 {[%clk 0:02:53]}  d6 {[%clk 0:02:56]} 6. O-O {[%clk 0:02:54]}  Nf6 {[%clk 0:02:52]} 7. d3 {[%clk 0:02:52]}  e6 {[%clk 0:02:51]} 8. b3 {[%clk 0:02:52]}  Nbd7 {[%clk 0:02:50]} 9. Bb2 {[%clk 0:02:52]}  Be7 {[%clk 0:02:49]} 10. Nbd2 {[%clk 0:02:52]}  O-O {[%clk 0:02:46]} 11. Rad1 {[%clk 0:02:51]}  Re8 {[%clk 0:02:38]} 12. c4 {[%clk 0:02:48]}  bxc4 {[%clk 0:02:37]} 13. Nxc4 {[%clk 0:02:48]}  d5 {[%clk 0:02:32]} 14. Nce5 {[%clk 0:02:38]}  Nxe5 {[%clk 0:02:28]} 15. Nxe5 {[%clk 0:02:38]}  Qc7 {[%clk 0:02:26]} 16. Rc1 {[%clk 0:02:35]}  Qb6 {[%clk 0:02:08]} 17. g4 {[%clk 0:02:25]}  Red8 {[%clk 0:01:55]} 18. g5 {[%clk 0:02:24]}  Nd7 {[%clk 0:01:54]} 19. exd5 {[%clk 0:02:01]}  Bxd5 {[%clk 0:01:28]} 20. g6 {[%clk 0:01:53]}  hxg6 {[%clk 0:01:23]} 21. Nxg6 {[%clk 0:01:52]}  Bf6 {[%clk 0:00:42]} 22. Bxd5 {[%clk 0:01:45]}  exd5 {[%clk 0:00:29]} 23. Ne7+ {[%clk 0:01:39]}  Bxe7 {[%clk 0:00:22]} 24. Qxe7 {[%clk 0:01:37]}  Qg6+ {[%clk 0:00:16]} 25. Kh1 {[%clk 0:01:36]}  Qxd3 {[%clk 0:00:16]} 26. Rg1 {[%clk 0:01:36]}  d4 {[%clk 0:00:16]} 27. Qg5 {[%clk 0:01:30]}  g6 {[%clk 0:00:13]} 28. Ba3 {[%clk 0:01:17]}  Qf3+ {[%clk 0:00:10]} 29. Rg2 {[%clk 0:01:16]}  Re8 {[%clk 0:00:09]} 30. Rg1 {[%clk 0:01:03]}  Re5 {[%clk 0:00:09]} 31. Qh4 {[%clk 0:00:41]}  Rae8 {[%clk 0:00:07]} 32. Bc1 {[%clk 0:00:36]}  Re1 {[%clk 0:00:06]} 33. h3 {[%clk 0:00:17]}  Rxg1+ {[%clk 0:00:06]} 34. Kxg1 {[%clk 0:00:17]}  Re1+ {[%clk 0:00:06]} 35. Kh2 {[%clk 0:00:18]}  Rxc1 {[%clk 0:00:07]} 36. Qd8+ {[%clk 0:00:18]}  Nf8 {[%clk 0:00:07]} 37. Qd6 {[%clk 0:00:18]}  Qf5 {[%clk 0:00:04]} 38. Qg3 {[%clk 0:00:17]}  Qe6 {[%clk 0:00:04]} 39. h4 {[%clk 0:00:17]}  Re1 {[%clk 0:00:05]} 40. h5 {[%clk 0:00:17]}  Qe5 {[%clk 0:00:04]} 41. hxg6 {[%clk 0:00:17]}  Qxg3+ {[%clk 0:00:04]} 42. Kxg3 {[%clk 0:00:18]}  Nxg6 {[%clk 0:00:05]} 43. Kf3 {[%clk 0:00:18]}  Re5 {[%clk 0:00:05]} 44. Rg5 {[%clk 0:00:19]}  Rxg5 {[%clk 0:00:05]} 45. Ke2 {[%clk 0:00:18]}  Re5+ {[%clk 0:00:05]} 46. Kd3 {[%clk 0:00:19]}  Nf4+ {[%clk 0:00:06]} 47. Kc4 {[%clk 0:00:20]}  Re2 {[%clk 0:00:06]} 48. Kxc5 {[%clk 0:00:20]}  Rxa2 {[%clk 0:00:07]} 49. Kxd4 {[%clk 0:00:21]}  Rxf2 {[%clk 0:00:08]} 50. Ke4 {[%clk 0:00:21]}  Rb2 {[%clk 0:00:08]} 51. Kxf4 {[%clk 0:00:22]}  Rxb3 {[%clk 0:00:09]} 52. Ke5 {[%clk 0:00:23]}  Rb5+ {[%clk 0:00:09]} 53. Kd4 {[%clk 0:00:24]}  f5 {[%clk 0:00:10]} 54. Kc4 {[%clk 0:00:25]}  f4 {[%clk 0:00:10]} 55. Kd3 {[%clk 0:00:25]}  a5 {[%clk 0:00:11]} 56. Ke2 {[%clk 0:00:26]}  a4 {[%clk 0:00:11]} 57. Kf3 {[%clk 0:00:27]}  a3 {[%clk 0:00:12]} 58. Kxf4 {[%clk 0:00:27]}  a2 {[%clk 0:00:13]} 59. Ke4 {[%clk 0:00:25]}  a1=Q {[%clk 0:00:14]} 0-1


[Site "https://www.chess.com"]

[Event "Titled Tuesday Blitz August 1 Late 2023"]
[White "Rodriguez, Santiago"]
[Black "Georg, Heinz"]
[WhiteFideId "3000591"]
[BlackFideId "4607295"]
[WhiteElo "2412"]
[BlackElo "2295"]
[Result "1-0"]
[Round "8"]
[TimeControl "180+1"]
[Date "2023.08.01"]
[WhiteClock "0:00:19"]
[BlackClock "0:00:19"]
[Board "115"]

1. d4 {[%clk 0:02:44]}  e6 {[%clk 0:02:59]} 2. Nf3 {[%clk 0:02:43]}  f5 {[%clk 0:03:00]} 3. Nc3 {[%clk 0:02:41]}  Nf6 {[%clk 0:02:59]} 4. Bg5 {[%clk 0:02:41]}  Bb4 {[%clk 0:02:59]} 5. Qd3 {[%clk 0:02:39]}  b6 {[%clk 0:02:56]} 6. Bxf6 {[%clk 0:02:35]}  Qxf6 {[%clk 0:02:54]} 7. e4 {[%clk 0:02:35]}  Bxc3+ {[%clk 0:02:49]} 8. bxc3 {[%clk 0:02:34]}  fxe4 {[%clk 0:02:47]} 9. Qxe4 {[%clk 0:02:33]}  Nc6 {[%clk 0:02:48]} 10. Bd3 {[%clk 0:02:30]}  Bb7 {[%clk 0:02:46]} 11. O-O-O {[%clk 0:02:15]}  O-O-O {[%clk 0:02:42]} 12. Rhf1 {[%clk 0:02:02]}  h6 {[%clk 0:02:37]} 13. h4 {[%clk 0:01:54]}  Rhf8 {[%clk 0:02:33]} 14. Kb2 {[%clk 0:01:53]}  Kb8 {[%clk 0:02:20]} 15. Qg6 {[%clk 0:01:28]}  Ne7 {[%clk 0:02:17]} 16. Qxf6 {[%clk 0:01:28]}  gxf6 {[%clk 0:02:14]} 17. Be2 {[%clk 0:01:25]}  Rg8 {[%clk 0:02:10]} 18. g3 {[%clk 0:01:26]}  f5 {[%clk 0:01:56]} 19. Ne5 {[%clk 0:01:22]}  Rg7 {[%clk 0:01:50]} 20. c4 {[%clk 0:01:21]}  Nc6 {[%clk 0:01:46]} 21. Nxc6+ {[%clk 0:01:15]}  dxc6 {[%clk 0:01:44]} 22. c3 {[%clk 0:01:14]}  Rf8 {[%clk 0:01:38]} 23. Bf3 {[%clk 0:01:12]}  f4 {[%clk 0:01:24]} 24. g4 {[%clk 0:01:11]}  c5 {[%clk 0:01:24]} 25. d5 {[%clk 0:01:10]}  exd5 {[%clk 0:01:21]} 26. cxd5 {[%clk 0:01:10]}  Rd7 {[%clk 0:01:08]} 27. c4 {[%clk 0:01:08]}  Ba6 {[%clk 0:01:07]} 28. Kc3 {[%clk 0:01:08]}  Re8 {[%clk 0:01:03]} 29. Rfe1 {[%clk 0:01:06]}  Rde7 {[%clk 0:01:03]} 30. Rxe7 {[%clk 0:01:02]}  Rxe7 {[%clk 0:01:04]} 31. d6 {[%clk 0:00:51]}  cxd6 {[%clk 0:00:59]} 32. Rxd6 {[%clk 0:00:50]}  Rh7 {[%clk 0:00:57]} 33. Be4 {[%clk 0:00:48]}  Rg7 {[%clk 0:00:53]} 34. f3 {[%clk 0:00:47]}  Bb7 {[%clk 0:00:51]} 35. Bxb7 {[%clk 0:00:44]}  Kxb7 {[%clk 0:00:52]} 36. Rxh6 {[%clk 0:00:44]}  Re7 {[%clk 0:00:52]} 37. Rd6 {[%clk 0:00:31]}  Re3+ {[%clk 0:00:52]} 38. Rd3 {[%clk 0:00:30]}  Re2 {[%clk 0:00:52]} 39. a3 {[%clk 0:00:26]}  Kc6 {[%clk 0:00:50]} 40. h5 {[%clk 0:00:26]}  Rh2 {[%clk 0:00:47]} 41. Rd5 {[%clk 0:00:23]}  Rh3 {[%clk 0:00:47]} 42. Rf5 {[%clk 0:00:20]}  Rxf3+ {[%clk 0:00:47]} 43. Kb2 {[%clk 0:00:20]}  a6 {[%clk 0:00:43]} 44. g5 {[%clk 0:00:20]}  Rh3 {[%clk 0:00:40]} 45. g6 {[%clk 0:00:20]}  Rg3 {[%clk 0:00:39]} 46. Rxf4 {[%clk 0:00:18]}  b5 {[%clk 0:00:31]} 47. Rf6+ {[%clk 0:00:18]}  Kb7 {[%clk 0:00:29]} 48. Rf7+ {[%clk 0:00:18]}  Kc6 {[%clk 0:00:29]} 49. g7 {[%clk 0:00:18]}  bxc4 {[%clk 0:00:27]} 50. Rf6+ {[%clk 0:00:18]}  Kd5 {[%clk 0:00:23]} 51. Rg6 {[%clk 0:00:19]}  Rb3+ {[%clk 0:00:19]} 52. Kc2 {[%clk 0:00:19]} 1-0


[Site "https://www.chess.com"]

[Event "Titled Tuesday Blitz August 1 Late 2023"]
[White "Stachanczyk, Jacek"]
[Black "Garmendiarov"]
[WhiteFideId "1116657"]
[WhiteElo "2386"]
[BlackElo "2276"]
[Result "1-0"]
[Round "8"]
[TimeControl "180+1"]
[Date "2023.08.01"]
[WhiteClock "0:01:01"]
[BlackClock "0:00:03"]
[Board "116"]

1. e4 {[%clk 0:02:54]}  c5 {[%clk 0:03:00]} 2. b3 {[%clk 0:02:49]}  Nc6 {[%clk 0:02:58]} 3. Bb2 {[%clk 0:02:49]}  Nf6 {[%clk 0:02:59]} 4. Nc3 {[%clk 0:02:42]}  d5 {[%clk 0:02:56]} 5. exd5 {[%clk 0:02:41]}  Nxd5 {[%clk 0:02:57]} 6. Nxd5 {[%clk 0:02:35]}  Qxd5 {[%clk 0:02:58]} 7. Qf3 {[%clk 0:02:35]}  Qxf3 {[%clk 0:02:27]} 8. Nxf3 {[%clk 0:02:36]}  f6 {[%clk 0:02:24]} 9. O-O-O {[%clk 0:02:34]}  e5 {[%clk 0:02:24]} 10. h3 {[%clk 0:02:31]}  Be7 {[%clk 0:02:21]} 11. Bc4 {[%clk 0:02:30]}  Na5 {[%clk 0:02:17]} 12. Bd5 {[%clk 0:02:28]}  Bd7 {[%clk 0:02:12]} 13. Nh2 {[%clk 0:02:08]}  Bc6 {[%clk 0:02:11]} 14. Bxc6+ {[%clk 0:02:07]}  Nxc6 {[%clk 0:02:12]} 15. Ng4 {[%clk 0:02:08]}  Nd4 {[%clk 0:02:05]} 16. Rde1 {[%clk 0:02:03]}  Kf7 {[%clk 0:01:55]} 17. Ne3 {[%clk 0:02:03]}  Rhd8 {[%clk 0:01:54]} 18. Rhf1 {[%clk 0:02:02]}  Rac8 {[%clk 0:01:49]} 19. f4 {[%clk 0:02:01]}  e4 {[%clk 0:01:06]} 20. Bxd4 {[%clk 0:01:52]}  cxd4 {[%clk 0:00:55]} 21. Nf5 {[%clk 0:01:52]}  Re8 {[%clk 0:00:55]} 22. Kd1 {[%clk 0:01:43]}  d3 {[%clk 0:00:47]} 23. cxd3 {[%clk 0:01:37]}  exd3 {[%clk 0:00:48]} 24. Rxe7+ {[%clk 0:01:13]}  Rxe7 {[%clk 0:00:48]} 25. Nd6+ {[%clk 0:01:13]}  Ke6 {[%clk 0:00:20]} 26. Nxc8 {[%clk 0:01:14]}  Rc7 {[%clk 0:00:19]} 27. Nxa7 {[%clk 0:01:12]}  Rc5 {[%clk 0:00:17]} 28. Rf3 {[%clk 0:01:11]}  Ra5 {[%clk 0:00:15]} 29. Nc8 {[%clk 0:01:07]}  Kd7 {[%clk 0:00:15]} 30. Nb6+ {[%clk 0:01:06]}  Kc6 {[%clk 0:00:16]} 31. Na4 {[%clk 0:01:05]}  b5 {[%clk 0:00:14]} 32. Nc3 {[%clk 0:01:05]}  b4 {[%clk 0:00:15]} 33. Na4 {[%clk 0:01:05]}  Rd5 {[%clk 0:00:15]} 34. Nb2 {[%clk 0:01:04]}  Rd4 {[%clk 0:00:14]} 35. Nxd3 {[%clk 0:01:02]}  Kb5 {[%clk 0:00:14]} 36. Kc2 {[%clk 0:01:01]}  f5 {[%clk 0:00:13]} 37. Nb2 {[%clk 0:01:01]}  Re4 {[%clk 0:00:11]} 38. Rf2 {[%clk 0:01:00]}  g6 {[%clk 0:00:11]} 39. Nc4 {[%clk 0:01:00]}  h6 {[%clk 0:00:10]} 40. g4 {[%clk 0:01:01]}  Rd4 {[%clk 0:00:09]} 41. gxf5 {[%clk 0:01:00]}  gxf5 {[%clk 0:00:10]} 42. Ne3 {[%clk 0:01:00]}  Rd6 {[%clk 0:00:06]} 43. Nxf5 {[%clk 0:01:00]}  Rc6+ {[%clk 0:00:06]} 44. Kb2 {[%clk 0:00:59]}  Rd6 {[%clk 0:00:07]} 45. Ne3 {[%clk 0:01:00]}  Rf6 {[%clk 0:00:05]} 46. f5 {[%clk 0:01:00]}  Kc5 {[%clk 0:00:05]} 47. Ng4 {[%clk 0:01:00]}  Rd6 {[%clk 0:00:03]} 48. f6 {[%clk 0:01:01]} 1-0


[Site "https://www.chess.com"]

[Event "Titled Tuesday Blitz August 1 Late 2023"]
[White "Necromon"]
[Black "Cardozo Munar, Carlos Eduardo"]
[BlackFideId "4409477"]
[WhiteElo "2383"]
[BlackElo "2262"]
[Result "1/2-1/2"]
[Round "8"]
[TimeControl "180+1"]
[Date "2023.08.01"]
[WhiteClock "0:00:11"]
[BlackClock "0:00:30"]
[Board "117"]

1. Nf3 {[%clk 0:03:00]}  Nf6 {[%clk 0:02:47]} 2. b3 {[%clk 0:02:56]}  g6 {[%clk 0:02:44]} 3. Bb2 {[%clk 0:02:49]}  Bg7 {[%clk 0:02:44]} 4. c4 {[%clk 0:02:45]}  O-O {[%clk 0:02:44]} 5. g3 {[%clk 0:02:45]}  d5 {[%clk 0:02:37]} 6. cxd5 {[%clk 0:02:42]}  Qxd5 {[%clk 0:02:36]} 7. Nc3 {[%clk 0:02:42]}  Qh5 {[%clk 0:02:36]} 8. Bg2 {[%clk 0:02:37]}  c6 {[%clk 0:02:35]} 9. O-O {[%clk 0:02:37]}  Bh3 {[%clk 0:02:35]} 10. d3 {[%clk 0:02:36]}  Nbd7 {[%clk 0:02:35]} 11. Qd2 {[%clk 0:02:27]}  Rad8 {[%clk 0:02:35]} 12. Qf4 {[%clk 0:02:23]}  e5 {[%clk 0:02:30]} 13. Qe3 {[%clk 0:02:13]}  Rfe8 {[%clk 0:02:29]} 14. Qxa7 {[%clk 0:02:11]}  b6 {[%clk 0:02:10]} 15. Qa4 {[%clk 0:02:05]}  b5 {[%clk 0:01:59]} 16. Qh4 {[%clk 0:02:02]}  Bxg2 {[%clk 0:01:58]} 17. Qxh5 {[%clk 0:01:59]}  Nxh5 {[%clk 0:01:58]} 18. Kxg2 {[%clk 0:01:59]}  Nc5 {[%clk 0:01:54]} 19. Rfc1 {[%clk 0:01:31]}  Bf8 {[%clk 0:01:42]} 20. Nd1 {[%clk 0:01:24]}  Ng7 {[%clk 0:01:37]} 21. Bxe5 {[%clk 0:01:14]}  Nf5 {[%clk 0:01:33]} 22. d4 {[%clk 0:01:03]}  Ne4 {[%clk 0:01:22]} 23. Rxc6 {[%clk 0:01:00]}  f6 {[%clk 0:01:23]} 24. Bxf6 {[%clk 0:01:00]}  Nxf6 {[%clk 0:01:22]} 25. Rxf6 {[%clk 0:01:00]}  Rxe2 {[%clk 0:01:23]} 26. Nc3 {[%clk 0:00:52]}  Rc2 {[%clk 0:01:07]} 27. Nxb5 {[%clk 0:00:41]}  Ne3+ {[%clk 0:01:07]} 28. Kg1 {[%clk 0:00:40]}  Ng4 {[%clk 0:00:56]} 29. Rf4 {[%clk 0:00:33]}  Nxf2 {[%clk 0:00:56]} 30. Ng5 {[%clk 0:00:26]}  Nd3 {[%clk 0:00:49]} 31. Rf3 {[%clk 0:00:21]}  Nb4 {[%clk 0:00:47]} 32. Ne6 {[%clk 0:00:19]}  Re8 {[%clk 0:00:39]} 33. Rxf8+ {[%clk 0:00:19]}  Rxf8 {[%clk 0:00:39]} 34. Nxf8 {[%clk 0:00:20]}  Kxf8 {[%clk 0:00:39]} 35. a4 {[%clk 0:00:20]}  Ke7 {[%clk 0:00:37]} 36. a5 {[%clk 0:00:21]}  Na6 {[%clk 0:00:37]} 37. Re1+ {[%clk 0:00:17]}  Kd7 {[%clk 0:00:37]} 38. Rf1 {[%clk 0:00:17]}  Rb2 {[%clk 0:00:29]} 39. Rf7+ {[%clk 0:00:16]}  Kc6 {[%clk 0:00:29]} 40. Na7+ {[%clk 0:00:16]}  Kd5 {[%clk 0:00:29]} 41. Rd7+ {[%clk 0:00:16]}  Ke4 {[%clk 0:00:29]} 42. Nc6 {[%clk 0:00:14]}  Rxb3 {[%clk 0:00:25]} 43. d5 {[%clk 0:00:13]}  Nc5 {[%clk 0:00:23]} 44. Rd8 {[%clk 0:00:10]}  Ra3 {[%clk 0:00:16]} 45. d6 {[%clk 0:00:09]}  Kd5 {[%clk 0:00:15]} 46. Ne7+ {[%clk 0:00:08]}  Ke6 {[%clk 0:00:15]} 47. Nc8 {[%clk 0:00:06]}  Ne4 {[%clk 0:00:14]} 48. Rh8 {[%clk 0:00:06]}  Rxa5 {[%clk 0:00:12]} 49. Rxh7 {[%clk 0:00:06]}  Nxd6 {[%clk 0:00:12]} 50. Nxd6 {[%clk 0:00:06]}  Kxd6 {[%clk 0:00:13]} 51. Rg7 {[%clk 0:00:06]}  Rg5 {[%clk 0:00:13]} 52. Kf2 {[%clk 0:00:06]}  Ke6 {[%clk 0:00:13]} 53. h4 {[%clk 0:00:07]}  Rf5+ {[%clk 0:00:14]} 54. Kg2 {[%clk 0:00:07]}  Kf6 {[%clk 0:00:14]} 55. Ra7 {[%clk 0:00:07]}  Rb5 {[%clk 0:00:15]} 56. Kh3 {[%clk 0:00:07]}  Rb3 {[%clk 0:00:14]} 57. Ra6+ {[%clk 0:00:05]}  Kg7 {[%clk 0:00:14]} 58. Kg4 {[%clk 0:00:05]}  Rb4+ {[%clk 0:00:14]} 59. Kh3 {[%clk 0:00:05]}  Rb3 {[%clk 0:00:14]} 60. Ra4 {[%clk 0:00:05]}  Rb1 {[%clk 0:00:14]} 61. Kg4 {[%clk 0:00:05]}  Kh6 {[%clk 0:00:15]} 62. Ra6 {[%clk 0:00:03]}  Rb4+ {[%clk 0:00:15]} 63. Kh3 {[%clk 0:00:04]}  Rb3 {[%clk 0:00:15]} 64. Kh2 {[%clk 0:00:03]}  Rb2+ {[%clk 0:00:15]} 65. Kg1 {[%clk 0:00:04]}  Rb1+ {[%clk 0:00:16]} 66. Kf2 {[%clk 0:00:05]}  Rb2+ {[%clk 0:00:16]} 67. Kf3 {[%clk 0:00:05]}  Rb3+ {[%clk 0:00:17]} 68. Kg4 {[%clk 0:00:05]}  Rb4+ {[%clk 0:00:18]} 69. Kh3 {[%clk 0:00:06]}  Rb3 {[%clk 0:00:18]} 70. Ra7 {[%clk 0:00:07]}  Rc3 {[%clk 0:00:18]} 71. Ra8 {[%clk 0:00:06]}  Rb3 {[%clk 0:00:18]} 72. Ra2 {[%clk 0:00:05]}  Rc3 {[%clk 0:00:18]} 73. Kg2 {[%clk 0:00:06]}  Kh5 {[%clk 0:00:18]} 74. Kf2 {[%clk 0:00:06]}  Kg4 {[%clk 0:00:18]} 75. Ra4+ {[%clk 0:00:04]}  Kh3 {[%clk 0:00:18]} 76. Ra5 {[%clk 0:00:04]}  Rxg3 {[%clk 0:00:18]} 77. Rg5 {[%clk 0:00:04]}  Rxg5 {[%clk 0:00:18]} 78. hxg5 {[%clk 0:00:04]}  Kg4 {[%clk 0:00:19]} 79. Kg2 {[%clk 0:00:05]}  Kf4 {[%clk 0:00:17]} 80. Kf2 {[%clk 0:00:05]}  Kg4 {[%clk 0:00:17]} 81. Kg2 {[%clk 0:00:06]}  Kxg5 {[%clk 0:00:18]} 82. Kg3 {[%clk 0:00:06]}  Kf5 {[%clk 0:00:18]} 83. Kf3 {[%clk 0:00:06]}  Kg5 {[%clk 0:00:19]} 84. Kg3 {[%clk 0:00:07]}  Kf5 {[%clk 0:00:20]} 85. Kf3 {[%clk 0:00:07]}  g5 {[%clk 0:00:21]} 86. Kg3 {[%clk 0:00:08]}  Kg6 {[%clk 0:00:22]} 87. Kg4 {[%clk 0:00:08]}  Kf6 {[%clk 0:00:22]} 88. Kg3 {[%clk 0:00:08]}  Kf5 {[%clk 0:00:23]} 89. Kf3 {[%clk 0:00:09]}  g4+ {[%clk 0:00:24]} 90. Kg3 {[%clk 0:00:09]}  Kg5 {[%clk 0:00:25]} 91. Kg2 {[%clk 0:00:09]}  Kh4 {[%clk 0:00:26]} 92. Kh2 {[%clk 0:00:10]}  g3+ {[%clk 0:00:27]} 93. Kg2 {[%clk 0:00:09]}  Kg4 {[%clk 0:00:27]} 94. Kg1 {[%clk 0:00:10]}  Kh3 {[%clk 0:00:28]} 95. Kh1 {[%clk 0:00:11]}  Kg4 {[%clk 0:00:29]} 96. Kg1 {[%clk 0:00:10]}  Kf4 {[%clk 0:00:30]} 97. Kg2 {[%clk 0:00:10]}  Kg4 {[%clk 0:00:30]} 98. Kg1 {[%clk 0:00:11]} 1/2-1/2


[Site "https://www.chess.com"]

[Event "Titled Tuesday Blitz August 1 Late 2023"]
[White "Curtis, John"]
[Black "Jahnz, Fabian"]
[WhiteFideId "3200256"]
[BlackFideId "4653300"]
[WhiteElo "2085"]
[BlackElo "2349"]
[Result "1-0"]
[Round "8"]
[TimeControl "180+1"]
[Date "2023.08.01"]
[WhiteClock "0:00:39"]
[BlackClock "0:00:17"]
[Board "125"]

1. d4 {[%clk 0:03:00]}  d5 {[%clk 0:03:00]} 2. Nf3 {[%clk 0:03:01]}  Bf5 {[%clk 0:02:59]} 3. c4 {[%clk 0:03:00]}  e6 {[%clk 0:02:59]} 4. Nc3 {[%clk 0:02:59]}  Nf6 {[%clk 0:02:59]} 5. Bg5 {[%clk 0:02:58]}  Be7 {[%clk 0:02:57]} 6. Bxf6 {[%clk 0:02:54]}  Bxf6 {[%clk 0:02:57]} 7. cxd5 {[%clk 0:02:53]}  exd5 {[%clk 0:02:56]} 8. Qb3 {[%clk 0:02:52]}  O-O {[%clk 0:02:42]} 9. Qxd5 {[%clk 0:02:51]}  Qxd5 {[%clk 0:02:34]} 10. Nxd5 {[%clk 0:02:49]}  Nc6 {[%clk 0:02:33]} 11. Nxf6+ {[%clk 0:02:46]}  gxf6 {[%clk 0:02:34]} 12. a3 {[%clk 0:02:36]}  Rad8 {[%clk 0:02:33]} 13. e3 {[%clk 0:02:35]}  Rfe8 {[%clk 0:02:33]} 14. Be2 {[%clk 0:02:34]}  Be4 {[%clk 0:02:22]} 15. O-O {[%clk 0:02:32]}  f5 {[%clk 0:02:22]} 16. Ng5 {[%clk 0:02:21]}  f4 {[%clk 0:02:21]} 17. Nxe4 {[%clk 0:02:19]}  Rxe4 {[%clk 0:02:21]} 18. Bf3 {[%clk 0:02:19]}  Re7 {[%clk 0:02:20]} 19. Bxc6 {[%clk 0:02:14]}  bxc6 {[%clk 0:02:21]} 20. Rfe1 {[%clk 0:02:06]}  Rde8 {[%clk 0:02:19]} 21. Rac1 {[%clk 0:02:03]}  Re6 {[%clk 0:01:44]} 22. Rc3 {[%clk 0:01:51]}  Rd6 {[%clk 0:01:44]} 23. Kf1 {[%clk 0:01:50]}  Rb8 {[%clk 0:01:41]} 24. b4 {[%clk 0:01:49]}  Rh6 {[%clk 0:01:21]} 25. exf4 {[%clk 0:01:39]}  Rxh2 {[%clk 0:01:20]} 26. Re7 {[%clk 0:01:34]}  Kf8 {[%clk 0:01:16]} 27. Rxc7 {[%clk 0:01:33]}  Rh1+ {[%clk 0:01:16]} 28. Ke2 {[%clk 0:01:33]}  Re8+ {[%clk 0:01:16]} 29. Re3 {[%clk 0:01:33]}  Rd8 {[%clk 0:01:10]} 30. Rd3 {[%clk 0:01:25]}  Rg1 {[%clk 0:01:08]} 31. Kf3 {[%clk 0:01:22]}  Rc1 {[%clk 0:01:02]} 32. d5 {[%clk 0:01:21]}  Rd6 {[%clk 0:00:52]} 33. b5 {[%clk 0:01:13]}  c5 {[%clk 0:00:49]} 34. Rc6 {[%clk 0:01:11]}  Rd7 {[%clk 0:00:48]} 35. d6 {[%clk 0:01:09]}  c4 {[%clk 0:00:48]} 36. Rd4 {[%clk 0:01:08]}  c3 {[%clk 0:00:49]} 37. Rd3 {[%clk 0:01:06]}  c2 {[%clk 0:00:48]} 38. Rdc3 {[%clk 0:01:06]}  Ra1 {[%clk 0:00:48]} 39. Rxc2 {[%clk 0:01:00]}  Rxa3+ {[%clk 0:00:48]} 40. Ke2 {[%clk 0:00:54]}  Rb3 {[%clk 0:00:47]} 41. Rc8+ {[%clk 0:00:51]}  Kg7 {[%clk 0:00:46]} 42. R2c6 {[%clk 0:00:51]}  Rxb5 {[%clk 0:00:45]} 43. R8c7 {[%clk 0:00:51]}  Rd8 {[%clk 0:00:41]} 44. Rxa7 {[%clk 0:00:50]}  Rb2+ {[%clk 0:00:39]} 45. Kf3 {[%clk 0:00:49]}  Rd2 {[%clk 0:00:39]} 46. Rcc7 {[%clk 0:00:48]}  Rd3+ {[%clk 0:00:29]} 47. Ke4 {[%clk 0:00:42]}  R8xd6 {[%clk 0:00:26]} 48. Rxf7+ {[%clk 0:00:41]}  Kg6 {[%clk 0:00:20]} 49. Rg7+ {[%clk 0:00:41]}  Kf6 {[%clk 0:00:17]} 50. Raf7+ {[%clk 0:00:39]} 1-0


[Site "https://www.chess.com"]

[Event "Titled Tuesday Blitz August 1 Late 2023"]
[White "Papp, Petra"]
[Black "Ramadoss, Ashokkumar"]
[WhiteFideId "739049"]
[BlackFideId "5040990"]
[WhiteElo "2424"]
[BlackElo "2305"]
[Result "0-1"]
[Round "8"]
[TimeControl "180+1"]
[Date "2023.08.01"]
[WhiteClock "0:02:37"]
[BlackClock "0:02:59"]
[Board "126"]

1. e4 {[%clk 0:03:00]}  e6 {[%clk 0:02:59]} 2. d4 {[%clk 0:03:00]}  d5 {[%clk 0:03:00]} 3. Nc3 {[%clk 0:02:56]}  Bb4 {[%clk 0:03:00]} 4. e5 {[%clk 0:02:56]}  c5 {[%clk 0:03:01]} 5. a3 {[%clk 0:02:56]}  Bxc3+ {[%clk 0:03:01]} 6. bxc3 {[%clk 0:02:57]}  Ne7 {[%clk 0:03:01]} 7. Qg4 {[%clk 0:02:57]}  O-O {[%clk 0:03:02]} 8. Bd3 {[%clk 0:02:57]}  Nbc6 {[%clk 0:03:02]} 9. Nf3 {[%clk 0:02:53]}  f5 {[%clk 0:03:02]} 10. exf6 {[%clk 0:02:52]}  Rxf6 {[%clk 0:03:03]} 11. Bg5 {[%clk 0:02:49]}  e5 {[%clk 0:03:03]} 12. Qh4 {[%clk 0:02:49]}  e4 {[%clk 0:03:03]} 13. Bxf6 {[%clk 0:02:48]}  gxf6 {[%clk 0:03:03]} 14. O-O {[%clk 0:02:45]}  exd3 {[%clk 0:03:02]} 15. cxd3 {[%clk 0:02:41]}  Ng6 {[%clk 0:03:00]} 16. Qxh7+ {[%clk 0:02:37]}  Kxh7 {[%clk 0:02:59]} 0-1


[Site "https://www.chess.com"]

[Event "Titled Tuesday Blitz August 1 Late 2023"]
[White "Silvestre, Christian"]
[Black "Broca Jimenez, Fernando"]
[WhiteFideId "30956269"]
[BlackFideId "5104742"]
[WhiteElo "2314"]
[BlackElo "2220"]
[Result "1-0"]
[Round "8"]
[TimeControl "180+1"]
[Date "2023.08.01"]
[WhiteClock "0:01:02"]
[BlackClock "0:00:33"]
[Board "127"]

1. d4 {[%clk 0:03:00]}  g6 {[%clk 0:02:58]} 2. e4 {[%clk 0:03:00]}  Bg7 {[%clk 0:02:59]} 3. c3 {[%clk 0:03:00]}  d6 {[%clk 0:02:59]} 4. Nf3 {[%clk 0:03:00]}  Nf6 {[%clk 0:02:59]} 5. Bd3 {[%clk 0:03:00]}  O-O {[%clk 0:03:00]} 6. h3 {[%clk 0:03:01]}  Nc6 {[%clk 0:03:00]} 7. d5 {[%clk 0:02:59]}  Ne5 {[%clk 0:02:59]} 8. Nxe5 {[%clk 0:02:59]}  dxe5 {[%clk 0:03:00]} 9. O-O {[%clk 0:02:59]}  e6 {[%clk 0:03:00]} 10. c4 {[%clk 0:02:59]}  exd5 {[%clk 0:03:01]} 11. cxd5 {[%clk 0:02:58]}  c6 {[%clk 0:03:02]} 12. dxc6 {[%clk 0:02:57]}  bxc6 {[%clk 0:03:02]} 13. Qc2 {[%clk 0:02:57]}  Rb8 {[%clk 0:02:53]} 14. Be3 {[%clk 0:02:55]}  Qa5 {[%clk 0:02:46]} 15. Na3 {[%clk 0:02:55]}  Ba6 {[%clk 0:02:43]} 16. Nc4 {[%clk 0:02:53]}  Bxc4 {[%clk 0:02:30]} 17. Bxc4 {[%clk 0:02:54]}  Qb4 {[%clk 0:02:28]} 18. b3 {[%clk 0:02:49]}  Rfd8 {[%clk 0:02:09]} 19. Bxa7 {[%clk 0:02:47]}  Rd2 {[%clk 0:02:09]} 20. Qb1 {[%clk 0:02:32]}  Rbd8 {[%clk 0:02:03]} 21. Be3 {[%clk 0:02:31]}  R2d7 {[%clk 0:02:00]} 22. Qc2 {[%clk 0:02:28]}  Nh5 {[%clk 0:01:54]} 23. g3 {[%clk 0:02:19]}  Kh8 {[%clk 0:01:41]} 24. a4 {[%clk 0:02:14]}  Nf6 {[%clk 0:01:34]} 25. a5 {[%clk 0:02:12]}  Ne8 {[%clk 0:01:32]} 26. Ra4 {[%clk 0:02:00]}  Qb8 {[%clk 0:01:29]} 27. a6 {[%clk 0:01:59]}  Qa8 {[%clk 0:01:28]} 28. Bb6 {[%clk 0:01:46]}  Rb8 {[%clk 0:01:23]} 29. Bc5 {[%clk 0:01:44]}  Nd6 {[%clk 0:01:15]} 30. Rd1 {[%clk 0:01:42]}  Rbd8 {[%clk 0:01:13]} 31. Bxd6 {[%clk 0:01:37]}  Rxd6 {[%clk 0:01:12]} 32. Rxd6 {[%clk 0:01:37]}  Rxd6 {[%clk 0:01:13]} 33. Bxf7 {[%clk 0:01:37]}  Bh6 {[%clk 0:01:06]} 34. Qc5 {[%clk 0:01:36]}  Rd1+ {[%clk 0:01:05]} 35. Kg2 {[%clk 0:01:36]}  Bg7 {[%clk 0:00:56]} 36. a7 {[%clk 0:01:31]}  Rd7 {[%clk 0:00:55]} 37. Be8 {[%clk 0:01:16]}  Rc7 {[%clk 0:00:49]} 38. Qb6 {[%clk 0:01:15]}  Rc8 {[%clk 0:00:39]} 39. Bxc6 {[%clk 0:01:06]}  Rxc6 {[%clk 0:00:35]} 40. Qxc6 {[%clk 0:01:05]}  Qxc6 {[%clk 0:00:32]} 41. a8=Q+ {[%clk 0:01:06]}  Qxa8 {[%clk 0:00:32]} 42. Rxa8+ {[%clk 0:01:02]}  Bf8 {[%clk 0:00:33]} 1-0


[Site "https://www.chess.com"]